Workbook

Sheet Annuitätendarlehen
A1: Annuitätendarlehen – Rechner (einfach & funktional)
A2: Parameter | E2: Kennzahlen
B3: Darlehensbetrag | C3: € 250,000.00 | E3: Monatliche Annuität | F3: =IF(C9, ROUND(PMT(C4/C7, C5*C7, -C3), 2), PMT(C4/C7, C5*C7, -C3)) -> 1218.29
B4: Nominalzins p.a. (%) | C4: 3.25% | E4: Zinskosten gesamt | F4: =D613 -> 115487.26
B5: Laufzeit (Jahre) | C5: 25 | E5: Tilgung gesamt | F5: =E613 -> 615486.74
B6: Startdatum | C6: 2026-01-01 | E6: Gesamtzahlungen | F6: =C613+F613 -> 730974
B7: Zahlungen pro Jahr | C7: 12 | E7: Letztes Zahlungsdatum | F7: =INDEX(B12:B611, MATCH(0, G12:G611, 0)) -> 55154
B8: Sondertilgung je Periode (optional) | C8: € 0.00
B9: Rate auf Cent runden (WAHR/FALSCH) | C9: TRUE
A11: Periode | B11: Zahlungsdatum | C11: Rate | D11: Zinsen | E11: Tilgung | F11: Sondertilgung | G11: Restschuld
A12: 1 | B12: =EDATE($C$6, A12-1) -> 2026-01-01 | C12: =$F$3 -> € 1,218.29 | D12: =ROUND((IF(A12=1,$C$3,G11) * ($C$4/$C$7)), 2) -> € 677.08 | E12: =C12-D12 -> € 541.21 | F12: =$C$8 -> € 0.00 | G12: =MAX(0, $C$3 - E12 - F12) -> € 249,458.79
A13: 2 | B13: 2026-02-01 | C13: € 1,218.29 | D13: € 675.62 | E13: € 542.67 | F13: € 0.00 | G13: =MAX(0, G12 - E13 - F13) -> € 248,916.12
A14: 3 | B14: 2026-03-01 | C14: € 1,218.29 | D14: € 674.15 | E14: € 544.14 | F14: € 0.00 | G14: € 248,371.98
A15: 4 | B15: 2026-04-01 | C15: € 1,218.29 | D15: € 672.67 | E15: € 545.62 | F15: € 0.00 | G15: € 247,826.36
A16: 5 | B16: 2026-05-01 | C16: € 1,218.29 | D16: € 671.20 | E16: € 547.09 | F16: € 0.00 | G16: € 247,279.27
A17: 6 | B17: 2026-06-01 | C17: € 1,218.29 | D17: € 669.71 | E17: € 548.58 | F17: € 0.00 | G17: € 246,730.69
A18: 7 | B18: 2026-07-01 | C18: € 1,218.29 | D18: € 668.23 | E18: € 550.06 | F18: € 0.00 | G18: € 246,180.63
A19: 8 | B19: 2026-08-01 | C19: € 1,218.29 | D19: € 666.74 | E19: € 551.55 | F19: € 0.00 | G19: € 245,629.08
A20: 9 | B20: 2026-09-01 | C20: € 1,218.29 | D20: € 665.25 | E20: € 553.04 | F20: € 0.00 | G20: € 245,076.04
A21: 10 | B21: 2026-10-01 | C21: € 1,218.29 | D21: € 663.75 | E21: € 554.54 | F21: € 0.00 | G21: € 244,521.50
A22: 11 | B22: 2026-11-01 | C22: € 1,218.29 | D22: € 662.25 | E22: € 556.04 | F22: € 0.00 | G22: € 243,965.46
A23: 12 | B23: 2026-12-01 | C23: € 1,218.29 | D23: € 660.74 | E23: € 557.55 | F23: € 0.00 | G23: € 243,407.91
A24: 13 | B24: 2027-01-01 | C24: € 1,218.29 | D24: € 659.23 | E24: € 559.06 | F24: € 0.00 | G24: € 242,848.85
A25: 14 | B25: 2027-02-01 | C25: € 1,218.29 | D25: € 657.72 | E25: € 560.57 | F25: € 0.00 | G25: € 242,288.28
A26: 15 | B26: 2027-03-01 | C26: € 1,218.29 | D26: € 656.20 | E26: € 562.09 | F26: € 0.00 | G26: € 241,726.19
A27: 16 | B27: 2027-04-01 | C27: € 1,218.29 | D27: € 654.68 | E27: € 563.61 | F27: € 0.00 | G27: € 241,162.58
A28: 17 | B28: 2027-05-01 | C28: € 1,218.29 | D28: € 653.15 | E28: € 565.14 | F28: € 0.00 | G28: € 240,597.44
A29: 18 | B29: 2027-06-01 | C29: € 1,218.29 | D29: € 651.62 | E29: € 566.67 | F29: € 0.00 | G29: € 240,030.77
A30: 19 | B30: 2027-07-01 | C30: € 1,218.29 | D30: € 650.08 | E30: € 568.21 | F30: € 0.00 | G30: € 239,462.56
A31: 20 | B31: 2027-08-01 | C31: € 1,218.29 | D31: € 648.54 | E31: € 569.75 | F31: € 0.00 | G31: € 238,892.81
A32: 21 | B32: 2027-09-01 | C32: € 1,218.29 | D32: € 647.00 | E32: € 571.29 | F32: € 0.00 | G32: € 238,321.52
A33: 22 | B33: 2027-10-01 | C33: € 1,218.29 | D33: € 645.45 | E33: € 572.84 | F33: € 0.00 | G33: € 237,748.68
A34: 23 | B34: 2027-11-01 | C34: € 1,218.29 | D34: € 643.90 | E34: € 574.39 | F34: € 0.00 | G34: € 237,174.29
A35: 24 | B35: 2027-12-01 | C35: € 1,218.29 | D35: € 642.35 | E35: € 575.94 | F35: € 0.00 | G35: € 236,598.35
A36: 25 | B36: 2028-01-01 | C36: € 1,218.29 | D36: € 640.79 | E36: € 577.50 | F36: € 0.00 | G36: € 236,020.85
A37: 26 | B37: 2028-02-01 | C37: € 1,218.29 | D37: € 639.22 | E37: € 579.07 | F37: € 0.00 | G37: € 235,441.78
A38: 27 | B38: 2028-03-01 | C38: € 1,218.29 | D38: € 637.65 | E38: € 580.64 | F38: € 0.00 | G38: € 234,861.14
A39: 28 | B39: 2028-04-01 | C39: € 1,218.29 | D39: € 636.08 | E39: € 582.21 | F39: € 0.00 | G39: € 234,278.93
A40: 29 | B40: 2028-05-01 | C40: € 1,218.29 | D40: € 634.51 | E40: € 583.78 | F40: € 0.00 | G40: € 233,695.15
A41: 30 | B41: 2028-06-01 | C41: € 1,218.29 | D41: € 632.92 | E41: € 585.37 | F41: € 0.00 | G41: € 233,109.78
A42: 31 | B42: 2028-07-01 | C42: € 1,218.29 | D42: € 631.34 | E42: € 586.95 | F42: € 0.00 | G42: € 232,522.83
A43: 32 | B43: 2028-08-01 | C43: € 1,218.29 | D43: € 629.75 | E43: € 588.54 | F43: € 0.00 | G43: € 231,934.29
A44: 33 | B44: 2028-09-01 | C44: € 1,218.29 | D44: € 628.16 | E44: € 590.13 | F44: € 0.00 | G44: € 231,344.16
A45: 34 | B45: 2028-10-01 | C45: € 1,218.29 | D45: € 626.56 | E45: € 591.73 | F45: € 0.00 | G45: € 230,752.43
A46: 35 | B46: 2028-11-01 | C46: € 1,218.29 | D46: € 624.95 | E46: € 593.34 | F46: € 0.00 | G46: € 230,159.09
A47: 36 | B47: 2028-12-01 | C47: € 1,218.29 | D47: € 623.35 | E47: € 594.94 | F47: € 0.00 | G47: € 229,564.15
A48: 37 | B48: 2029-01-01 | C48: € 1,218.29 | D48: € 621.74 | E48: € 596.55 | F48: € 0.00 | G48: € 228,967.60
A49: 38 | B49: 2029-02-01 | C49: € 1,218.29 | D49: € 620.12 | E49: € 598.17 | F49: € 0.00 | G49: € 228,369.43
A50: 39 | B50: 2029-03-01 | C50: € 1,218.29 | D50: € 618.50 | E50: € 599.79 | F50: € 0.00 | G50: € 227,769.64
A51: 40 | B51: 2029-04-01 | C51: € 1,218.29 | D51: € 616.88 | E51: € 601.41 | F51: € 0.00 | G51: € 227,168.23
A52: 41 | B52: 2029-05-01 | C52: € 1,218.29 | D52: € 615.25 | E52: € 603.04 | F52: € 0.00 | G52: € 226,565.19
A53: 42 | B53: 2029-06-01 | C53: € 1,218.29 | D53: € 613.61 | E53: € 604.68 | F53: € 0.00 | G53: € 225,960.51
A54: 43 | B54: 2029-07-01 | C54: € 1,218.29 | D54: € 611.98 | E54: € 606.31 | F54: € 0.00 | G54: € 225,354.20
A55: 44 | B55: 2029-08-01 | C55: € 1,218.29 | D55: € 610.33 | E55: € 607.96 | F55: € 0.00 | G55: € 224,746.24
A56: 45 | B56: 2029-09-01 | C56: € 1,218.29 | D56: € 608.69 | E56: € 609.60 | F56: € 0.00 | G56: € 224,136.64
A57: 46 | B57: 2029-10-01 | C57: € 1,218.29 | D57: € 607.04 | E57: € 611.25 | F57: € 0.00 | G57: € 223,525.39
A58: 47 | B58: 2029-11-01 | C58: € 1,218.29 | D58: € 605.38 | E58: € 612.91 | F58: € 0.00 | G58: € 222,912.48
A59: 48 | B59: 2029-12-01 | C59: € 1,218.29 | D59: € 603.72 | E59: € 614.57 | F59: € 0.00 | G59: € 222,297.91
A60: 49 | B60: 2030-01-01 | C60: € 1,218.29 | D60: € 602.06 | E60: € 616.23 | F60: € 0.00 | G60: € 221,681.68
A61: 50 | B61: 2030-02-01 | C61: € 1,218.29 | D61: € 600.39 | E61: € 617.90 | F61: € 0.00 | G61: € 221,063.78
A62: 51 | B62: 2030-03-01 | C62: € 1,218.29 | D62: € 598.71 | E62: € 619.58 | F62: € 0.00 | G62: € 220,444.20
A63: 52 | B63: 2030-04-01 | C63: € 1,218.29 | D63: € 597.04 | E63: € 621.25 | F63: € 0.00 | G63: € 219,822.95
A64: 53 | B64: 2030-05-01 | C64: € 1,218.29 | D64: € 595.35 | E64: € 622.94 | F64: € 0.00 | G64: € 219,200.01
A65: 54 | B65: 2030-06-01 | C65: € 1,218.29 | D65: € 593.67 | E65: € 624.62 | F65: € 0.00 | G65: € 218,575.39
A66: 55 | B66: 2030-07-01 | C66: € 1,218.29 | D66: € 591.98 | E66: € 626.31 | F66: € 0.00 | G66: € 217,949.08
A67: 56 | B67: 2030-08-01 | C67: € 1,218.29 | D67: € 590.28 | E67: € 628.01 | F67: € 0.00 | G67: € 217,321.07
A68: 57 | B68: 2030-09-01 | C68: € 1,218.29 | D68: € 588.58 | E68: € 629.71 | F68: € 0.00 | G68: € 216,691.36
A69: 58 | B69: 2030-10-01 | C69: € 1,218.29 | D69: € 586.87 | E69: € 631.42 | F69: € 0.00 | G69: € 216,059.94
A70: 59 | B70: 2030-11-01 | C70: € 1,218.29 | D70: € 585.16 | E70: € 633.13 | F70: € 0.00 | G70: € 215,426.81
A71: 60 | B71: 2030-12-01 | C71: € 1,218.29 | D71: € 583.45 | E71: € 634.84 | F71: € 0.00 | G71: € 214,791.97
A72: 61 | B72: 2031-01-01 | C72: € 1,218.29 | D72: € 581.73 | E72: € 636.56 | F72: € 0.00 | G72: € 214,155.41
A73: 62 | B73: 2031-02-01 | C73: € 1,218.29 | D73: € 580.00 | E73: € 638.29 | F73: € 0.00 | G73: € 213,517.12
A74: 63 | B74: 2031-03-01 | C74: € 1,218.29 | D74: € 578.28 | E74: € 640.01 | F74: € 0.00 | G74: € 212,877.11
A75: 64 | B75: 2031-04-01 | C75: € 1,218.29 | D75: € 576.54 | E75: € 641.75 | F75: € 0.00 | G75: € 212,235.36
A76: 65 | B76: =EDATE($C$6, A76-1) -> 2031-05-01 | C76: =$F$3 -> € 1,218.29 | D76: =ROUND((IF(A76=1,$C$3,G75) * ($C$4/$C$7)), 2) -> € 574.80 | E76: =C76-D76 -> € 643.49 | F76: =$C$8 -> € 0.00 | G76: € 211,591.87
A77: 66 | B77: 2031-06-01 | C77: € 1,218.29 | D77: € 573.06 | E77: € 645.23 | F77: € 0.00 | G77: =MAX(0, G76 - E77 - F77) -> € 210,946.64
A78: 67 | B78: 2031-07-01 | C78: € 1,218.29 | D78: € 571.31 | E78: € 646.98 | F78: € 0.00 | G78: € 210,299.66
A79: 68 | B79: 2031-08-01 | C79: € 1,218.29 | D79: € 569.56 | E79: € 648.73 | F79: € 0.00 | G79: € 209,650.93
A80: 69 | B80: 2031-09-01 | C80: € 1,218.29 | D80: € 567.80 | E80: € 650.49 | F80: € 0.00 | G80: € 209,000.44
A81: 70 | B81: 2031-10-01 | C81: € 1,218.29 | D81: € 566.04 | E81: € 652.25 | F81: € 0.00 | G81: € 208,348.19
A82: 71 | B82: 2031-11-01 | C82: € 1,218.29 | D82: € 564.28 | E82: € 654.01 | F82: € 0.00 | G82: € 207,694.18
A83: 72 | B83: 2031-12-01 | C83: € 1,218.29 | D83: € 562.51 | E83: € 655.78 | F83: € 0.00 | G83: € 207,038.40
A84: 73 | B84: 2032-01-01 | C84: € 1,218.29 | D84: € 560.73 | E84: € 657.56 | F84: € 0.00 | G84: € 206,380.84
A85: 74 | B85: 2032-02-01 | C85: € 1,218.29 | D85: € 558.95 | E85: € 659.34 | F85: € 0.00 | G85: € 205,721.50
A86: 75 | B86: 2032-03-01 | C86: € 1,218.29 | D86: € 557.16 | E86: € 661.13 | F86: € 0.00 | G86: € 205,060.37
A87: 76 | B87: 2032-04-01 | C87: € 1,218.29 | D87: € 555.37 | E87: € 662.92 | F87: € 0.00 | G87: € 204,397.45
A88: 77 | B88: 2032-05-01 | C88: € 1,218.29 | D88: € 553.58 | E88: € 664.71 | F88: € 0.00 | G88: € 203,732.74
A89: 78 | B89: 2032-06-01 | C89: € 1,218.29 | D89: € 551.78 | E89: € 666.51 | F89: € 0.00 | G89: € 203,066.23
A90: 79 | B90: 2032-07-01 | C90: € 1,218.29 | D90: € 549.97 | E90: € 668.32 | F90: € 0.00 | G90: € 202,397.91
A91: 80 | B91: 2032-08-01 | C91: € 1,218.29 | D91: € 548.16 | E91: € 670.13 | F91: € 0.00 | G91: € 201,727.78
A92: 81 | B92: 2032-09-01 | C92: € 1,218.29 | D92: € 546.35 | E92: € 671.94 | F92: € 0.00 | G92: € 201,055.84
A93: 82 | B93: 2032-10-01 | C93: € 1,218.29 | D93: € 544.53 | E93: € 673.76 | F93: € 0.00 | G93: € 200,382.08
A94: 83 | B94: 2032-11-01 | C94: € 1,218.29 | D94: € 542.70 | E94: € 675.59 | F94: € 0.00 | G94: € 199,706.49
A95: 84 | B95: 2032-12-01 | C95: € 1,218.29 | D95: € 540.87 | E95: € 677.42 | F95: € 0.00 | G95: € 199,029.07
A96: 85 | B96: 2033-01-01 | C96: € 1,218.29 | D96: € 539.04 | E96: € 679.25 | F96: € 0.00 | G96: € 198,349.82
A97: 86 | B97: 2033-02-01 | C97: € 1,218.29 | D97: € 537.20 | E97: € 681.09 | F97: € 0.00 | G97: € 197,668.73
A98: 87 | B98: 2033-03-01 | C98: € 1,218.29 | D98: € 535.35 | E98: € 682.94 | F98: € 0.00 | G98: € 196,985.79
A99: 88 | B99: 2033-04-01 | C99: € 1,218.29 | D99: € 533.50 | E99: € 684.79 | F99: € 0.00 | G99: € 196,301.00
A100: 89 | B100: 2033-05-01 | C100: € 1,218.29 | D100: € 531.65 | E100: € 686.64 | F100: € 0.00 | G100: € 195,614.36
A101: 90 | B101: 2033-06-01 | C101: € 1,218.29 | D101: € 529.79 | E101: € 688.50 | F101: € 0.00 | G101: € 194,925.86
A102: 91 | B102: 2033-07-01 | C102: € 1,218.29 | D102: € 527.92 | E102: € 690.37 | F102: € 0.00 | G102: € 194,235.49
A103: 92 | B103: 2033-08-01 | C103: € 1,218.29 | D103: € 526.05 | E103: € 692.24 | F103: € 0.00 | G103: € 193,543.25
A104: 93 | B104: 2033-09-01 | C104: € 1,218.29 | D104: € 524.18 | E104: € 694.11 | F104: € 0.00 | G104: € 192,849.14
A105: 94 | B105: 2033-10-01 | C105: € 1,218.29 | D105: € 522.30 | E105: € 695.99 | F105: € 0.00 | G105: € 192,153.15
A106: 95 | B106: 2033-11-01 | C106: € 1,218.29 | D106: € 520.41 | E106: € 697.88 | F106: € 0.00 | G106: € 191,455.27
A107: 96 | B107: 2033-12-01 | C107: € 1,218.29 | D107: € 518.52 | E107: € 699.77 | F107: € 0.00 | G107: € 190,755.50
A108: 97 | B108: 2034-01-01 | C108: € 1,218.29 | D108: € 516.63 | E108: € 701.66 | F108: € 0.00 | G108: € 190,053.84
A109: 98 | B109: 2034-02-01 | C109: € 1,218.29 | D109: € 514.73 | E109: € 703.56 | F109: € 0.00 | G109: € 189,350.28
A110: 99 | B110: 2034-03-01 | C110: € 1,218.29 | D110: € 512.82 | E110: € 705.47 | F110: € 0.00 | G110: € 188,644.81
A111: 100 | B111: 2034-04-01 | C111: € 1,218.29 | D111: € 510.91 | E111: € 707.38 | F111: € 0.00 | G111: € 187,937.43
A112: 101 | B112: 2034-05-01 | C112: € 1,218.29 | D112: € 509.00 | E112: € 709.29 | F112: € 0.00 | G112: € 187,228.14
A113: 102 | B113: 2034-06-01 | C113: € 1,218.29 | D113: € 507.08 | E113: € 711.21 | F113: € 0.00 | G113: € 186,516.93
A114: 103 | B114: 2034-07-01 | C114: € 1,218.29 | D114: € 505.15 | E114: € 713.14 | F114: € 0.00 | G114: € 185,803.79
A115: 104 | B115: 2034-08-01 | C115: € 1,218.29 | D115: € 503.22 | E115: € 715.07 | F115: € 0.00 | G115: € 185,088.72
A116: 105 | B116: 2034-09-01 | C116: € 1,218.29 | D116: € 501.28 | E116: € 717.01 | F116: € 0.00 | G116: € 184,371.71
A117: 106 | B117: 2034-10-01 | C117: € 1,218.29 | D117: € 499.34 | E117: € 718.95 | F117: € 0.00 | G117: € 183,652.76
A118: 107 | B118: 2034-11-01 | C118: € 1,218.29 | D118: € 497.39 | E118: € 720.90 | F118: € 0.00 | G118: € 182,931.86
A119: 108 | B119: 2034-12-01 | C119: € 1,218.29 | D119: € 495.44 | E119: € 722.85 | F119: € 0.00 | G119: € 182,209.01
A120: 109 | B120: 2035-01-01 | C120: € 1,218.29 | D120: € 493.48 | E120: € 724.81 | F120: € 0.00 | G120: € 181,484.20
A121: 110 | B121: 2035-02-01 | C121: € 1,218.29 | D121: € 491.52 | E121: € 726.77 | F121: € 0.00 | G121: € 180,757.43
A122: 111 | B122: 2035-03-01 | C122: € 1,218.29 | D122: € 489.55 | E122: € 728.74 | F122: € 0.00 | G122: € 180,028.69
A123: 112 | B123: 2035-04-01 | C123: € 1,218.29 | D123: € 487.58 | E123: € 730.71 | F123: € 0.00 | G123: € 179,297.98
A124: 113 | B124: 2035-05-01 | C124: € 1,218.29 | D124: € 485.60 | E124: € 732.69 | F124: € 0.00 | G124: € 178,565.29
A125: 114 | B125: 2035-06-01 | C125: € 1,218.29 | D125: € 483.61 | E125: € 734.68 | F125: € 0.00 | G125: € 177,830.61
A126: 115 | B126: 2035-07-01 | C126: € 1,218.29 | D126: € 481.62 | E126: € 736.67 | F126: € 0.00 | G126: € 177,093.94
A127: 116 | B127: 2035-08-01 | C127: € 1,218.29 | D127: € 479.63 | E127: € 738.66 | F127: € 0.00 | G127: € 176,355.28
A128: 117 | B128: 2035-09-01 | C128: € 1,218.29 | D128: € 477.63 | E128: € 740.66 | F128: € 0.00 | G128: € 175,614.62
A129: 118 | B129: 2035-10-01 | C129: € 1,218.29 | D129: € 475.62 | E129: € 742.67 | F129: € 0.00 | G129: € 174,871.95
A130: 119 | B130: 2035-11-01 | C130: € 1,218.29 | D130: € 473.61 | E130: € 744.68 | F130: € 0.00 | G130: € 174,127.27
A131: 120 | B131: 2035-12-01 | C131: € 1,218.29 | D131: € 471.59 | E131: € 746.70 | F131: € 0.00 | G131: € 173,380.57
A132: 121 | B132: 2036-01-01 | C132: € 1,218.29 | D132: € 469.57 | E132: € 748.72 | F132: € 0.00 | G132: € 172,631.85
A133: 122 | B133: 2036-02-01 | C133: € 1,218.29 | D133: € 467.54 | E133: € 750.75 | F133: € 0.00 | G133: € 171,881.10
A134: 123 | B134: 2036-03-01 | C134: € 1,218.29 | D134: € 465.51 | E134: € 752.78 | F134: € 0.00 | G134: € 171,128.32
A135: 124 | B135: 2036-04-01 | C135: € 1,218.29 | D135: € 463.47 | E135: € 754.82 | F135: € 0.00 | G135: € 170,373.50
A136: 125 | B136: 2036-05-01 | C136: € 1,218.29 | D136: € 461.43 | E136: € 756.86 | F136: € 0.00 | G136: € 169,616.64
A137: 126 | B137: 2036-06-01 | C137: € 1,218.29 | D137: € 459.38 | E137: € 758.91 | F137: € 0.00 | G137: € 168,857.73
A138: 127 | B138: 2036-07-01 | C138: € 1,218.29 | D138: € 457.32 | E138: € 760.97 | F138: € 0.00 | G138: € 168,096.76
A139: 128 | B139: 2036-08-01 | C139: € 1,218.29 | D139: € 455.26 | E139: € 763.03 | F139: € 0.00 | G139: € 167,333.73
A140: 129 | B140: =EDATE($C$6, A140-1) -> 2036-09-01 | C140: =$F$3 -> € 1,218.29 | D140: =ROUND((IF(A140=1,$C$3,G139) * ($C$4/$C$7)), 2) -> € 453.20 | E140: =C140-D140 -> € 765.09 | F140: =$C$8 -> € 0.00 | G140: € 166,568.64
A141: 130 | B141: 2036-10-01 | C141: € 1,218.29 | D141: € 451.12 | E141: € 767.17 | F141: € 0.00 | G141: =MAX(0, G140 - E141 - F141) -> € 165,801.47
A142: 131 | B142: 2036-11-01 | C142: € 1,218.29 | D142: € 449.05 | E142: € 769.24 | F142: € 0.00 | G142: € 165,032.23
A143: 132 | B143: 2036-12-01 | C143: € 1,218.29 | D143: € 446.96 | E143: € 771.33 | F143: € 0.00 | G143: € 164,260.90
A144: 133 | B144: 2037-01-01 | C144: € 1,218.29 | D144: € 444.87 | E144: € 773.42 | F144: € 0.00 | G144: € 163,487.48
A145: 134 | B145: 2037-02-01 | C145: € 1,218.29 | D145: € 442.78 | E145: € 775.51 | F145: € 0.00 | G145: € 162,711.97
A146: 135 | B146: 2037-03-01 | C146: € 1,218.29 | D146: € 440.68 | E146: € 777.61 | F146: € 0.00 | G146: € 161,934.36
A147: 136 | B147: 2037-04-01 | C147: € 1,218.29 | D147: € 438.57 | E147: € 779.72 | F147: € 0.00 | G147: € 161,154.64
A148: 137 | B148: 2037-05-01 | C148: € 1,218.29 | D148: € 436.46 | E148: € 781.83 | F148: € 0.00 | G148: € 160,372.81
A149: 138 | B149: 2037-06-01 | C149: € 1,218.29 | D149: € 434.34 | E149: € 783.95 | F149: € 0.00 | G149: € 159,588.86
A150: 139 | B150: 2037-07-01 | C150: € 1,218.29 | D150: € 432.22 | E150: € 786.07 | F150: € 0.00 | G150: € 158,802.79
A151: 140 | B151: 2037-08-01 | C151: € 1,218.29 | D151: € 430.09 | E151: € 788.20 | F151: € 0.00 | G151: € 158,014.59
A152: 141 | B152: 2037-09-01 | C152: € 1,218.29 | D152: € 427.96 | E152: € 790.33 | F152: € 0.00 | G152: € 157,224.26
A153: 142 | B153: 2037-10-01 | C153: € 1,218.29 | D153: € 425.82 | E153: € 792.47 | F153: € 0.00 | G153: € 156,431.79
A154: 143 | B154: 2037-11-01 | C154: € 1,218.29 | D154: € 423.67 | E154: € 794.62 | F154: € 0.00 | G154: € 155,637.17
A155: 144 | B155: 2037-12-01 | C155: € 1,218.29 | D155: € 421.52 | E155: € 796.77 | F155: € 0.00 | G155: € 154,840.40
A156: 145 | B156: 2038-01-01 | C156: € 1,218.29 | D156: € 419.36 | E156: € 798.93 | F156: € 0.00 | G156: € 154,041.47
A157: 146 | B157: 2038-02-01 | C157: € 1,218.29 | D157: € 417.20 | E157: € 801.09 | F157: € 0.00 | G157: € 153,240.38
A158: 147 | B158: 2038-03-01 | C158: € 1,218.29 | D158: € 415.03 | E158: € 803.26 | F158: € 0.00 | G158: € 152,437.12
A159: 148 | B159: 2038-04-01 | C159: € 1,218.29 | D159: € 412.85 | E159: € 805.44 | F159: € 0.00 | G159: € 151,631.68
A160: 149 | B160: 2038-05-01 | C160: € 1,218.29 | D160: € 410.67 | E160: € 807.62 | F160: € 0.00 | G160: € 150,824.06
A161: 150 | B161: 2038-06-01 | C161: € 1,218.29 | D161: € 408.48 | E161: € 809.81 | F161: € 0.00 | G161: € 150,014.25
A162: 151 | B162: 2038-07-01 | C162: € 1,218.29 | D162: € 406.29 | E162: € 812.00 | F162: € 0.00 | G162: € 149,202.25
A163: 152 | B163: 2038-08-01 | C163: € 1,218.29 | D163: € 404.09 | E163: € 814.20 | F163: € 0.00 | G163: € 148,388.05
A164: 153 | B164: 2038-09-01 | C164: € 1,218.29 | D164: € 401.88 | E164: € 816.41 | F164: € 0.00 | G164: € 147,571.64
A165: 154 | B165: 2038-10-01 | C165: € 1,218.29 | D165: € 399.67 | E165: € 818.62 | F165: € 0.00 | G165: € 146,753.02
A166: 155 | B166: 2038-11-01 | C166: € 1,218.29 | D166: € 397.46 | E166: € 820.83 | F166: € 0.00 | G166: € 145,932.19
A167: 156 | B167: 2038-12-01 | C167: € 1,218.29 | D167: € 395.23 | E167: € 823.06 | F167: € 0.00 | G167: € 145,109.13
A168: 157 | B168: 2039-01-01 | C168: € 1,218.29 | D168: € 393.00 | E168: € 825.29 | F168: € 0.00 | G168: € 144,283.84
A169: 158 | B169: 2039-02-01 | C169: € 1,218.29 | D169: € 390.77 | E169: € 827.52 | F169: € 0.00 | G169: € 143,456.32
A170: 159 | B170: 2039-03-01 | C170: € 1,218.29 | D170: € 388.53 | E170: € 829.76 | F170: € 0.00 | G170: € 142,626.56
A171: 160 | B171: 2039-04-01 | C171: € 1,218.29 | D171: € 386.28 | E171: € 832.01 | F171: € 0.00 | G171: € 141,794.55
A172: 161 | B172: 2039-05-01 | C172: € 1,218.29 | D172: € 384.03 | E172: € 834.26 | F172: € 0.00 | G172: € 140,960.29
A173: 162 | B173: 2039-06-01 | C173: € 1,218.29 | D173: € 381.77 | E173: € 836.52 | F173: € 0.00 | G173: € 140,123.77
A174: 163 | B174: 2039-07-01 | C174: € 1,218.29 | D174: € 379.50 | E174: € 838.79 | F174: € 0.00 | G174: € 139,284.98
A175: 164 | B175: 2039-08-01 | C175: € 1,218.29 | D175: € 377.23 | E175: € 841.06 | F175: € 0.00 | G175: € 138,443.92
A176: 165 | B176: 2039-09-01 | C176: € 1,218.29 | D176: € 374.95 | E176: € 843.34 | F176: € 0.00 | G176: € 137,600.58
A177: 166 | B177: 2039-10-01 | C177: € 1,218.29 | D177: € 372.67 | E177: € 845.62 | F177: € 0.00 | G177: € 136,754.96
A178: 167 | B178: 2039-11-01 | C178: € 1,218.29 | D178: € 370.38 | E178: € 847.91 | F178: € 0.00 | G178: € 135,907.05
A179: 168 | B179: 2039-12-01 | C179: € 1,218.29 | D179: € 368.08 | E179: € 850.21 | F179: € 0.00 | G179: € 135,056.84
A180: 169 | B180: 2040-01-01 | C180: € 1,218.29 | D180: € 365.78 | E180: € 852.51 | F180: € 0.00 | G180: € 134,204.33
A181: 170 | B181: 2040-02-01 | C181: € 1,218.29 | D181: € 363.47 | E181: € 854.82 | F181: € 0.00 | G181: € 133,349.51
A182: 171 | B182: 2040-03-01 | C182: € 1,218.29 | D182: € 361.15 | E182: € 857.14 | F182: € 0.00 | G182: € 132,492.37
A183: 172 | B183: 2040-04-01 | C183: € 1,218.29 | D183: € 358.83 | E183: € 859.46 | F183: € 0.00 | G183: € 131,632.91
A184: 173 | B184: 2040-05-01 | C184: € 1,218.29 | D184: € 356.51 | E184: € 861.78 | F184: € 0.00 | G184: € 130,771.13
A185: 174 | B185: 2040-06-01 | C185: € 1,218.29 | D185: € 354.17 | E185: € 864.12 | F185: € 0.00 | G185: € 129,907.01
A186: 175 | B186: 2040-07-01 | C186: € 1,218.29 | D186: € 351.83 | E186: € 866.46 | F186: € 0.00 | G186: € 129,040.55
A187: 176 | B187: 2040-08-01 | C187: € 1,218.29 | D187: € 349.48 | E187: € 868.81 | F187: € 0.00 | G187: € 128,171.74
A188: 177 | B188: 2040-09-01 | C188: € 1,218.29 | D188: € 347.13 | E188: € 871.16 | F188: € 0.00 | G188: € 127,300.58
A189: 178 | B189: 2040-10-01 | C189: € 1,218.29 | D189: € 344.77 | E189: € 873.52 | F189: € 0.00 | G189: € 126,427.06
A190: 179 | B190: 2040-11-01 | C190: € 1,218.29 | D190: € 342.41 | E190: € 875.88 | F190: € 0.00 | G190: € 125,551.18
A191: 180 | B191: 2040-12-01 | C191: € 1,218.29 | D191: € 340.03 | E191: € 878.26 | F191: € 0.00 | G191: € 124,672.92
A192: 181 | B192: 2041-01-01 | C192: € 1,218.29 | D192: € 337.66 | E192: € 880.63 | F192: € 0.00 | G192: € 123,792.29
A193: 182 | B193: 2041-02-01 | C193: € 1,218.29 | D193: € 335.27 | E193: € 883.02 | F193: € 0.00 | G193: € 122,909.27
A194: 183 | B194: 2041-03-01 | C194: € 1,218.29 | D194: € 332.88 | E194: € 885.41 | F194: € 0.00 | G194: € 122,023.86
A195: 184 | B195: 2041-04-01 | C195: € 1,218.29 | D195: € 330.48 | E195: € 887.81 | F195: € 0.00 | G195: € 121,136.05
A196: 185 | B196: 2041-05-01 | C196: € 1,218.29 | D196: € 328.08 | E196: € 890.21 | F196: € 0.00 | G196: € 120,245.84
A197: 186 | B197: 2041-06-01 | C197: € 1,218.29 | D197: € 325.67 | E197: € 892.62 | F197: € 0.00 | G197: € 119,353.22
A198: 187 | B198: 2041-07-01 | C198: € 1,218.29 | D198: € 323.25 | E198: € 895.04 | F198: € 0.00 | G198: € 118,458.18
A199: 188 | B199: 2041-08-01 | C199: € 1,218.29 | D199: € 320.82 | E199: € 897.47 | F199: € 0.00 | G199: € 117,560.71
A200: 189 | B200: 2041-09-01 | C200: € 1,218.29 | D200: € 318.39 | E200: € 899.90 | F200: € 0.00 | G200: € 116,660.81
A201: 190 | B201: 2041-10-01 | C201: € 1,218.29 | D201: € 315.96 | E201: € 902.33 | F201: € 0.00 | G201: € 115,758.48
... 411 more rows
